bitfinex/quotes_ETHUSD_20250425
["timestamp","ask_amount","ask_price","bid_price","bid_amount"]
[1745554499642,0.76766808,1768.2,1767.8,11.31300442]
[1745554499842,0.76766808,1768.2,1767.8,11.31301261]
[1745554500340,0.76766808,1768.2,1767.9,5.65640233]
[1745554500536,0.7638,1768.1,1767.7,0.56568186]
[1745554500831,4.967,1768.0,1767.8,5.65673831]
[1745554501259,4.967,1768.0,1767.6,5.65725647]
[1745554501957,4.967,1768.0,1767.5,5.65770862]
[1745554502150,4.967,1768.0,1767.9,5.65642853]
[1745554503048,4.967,1768.0,1767.9,6.46722853]
[1745554503370,4.967,1768.4,1768.0,5.65610859]
[1745554503576,4.967,1768.4,1768.3,5.65514901]
[1745554505535,4.967,1768.4,1768.3,6.86627893]
[1745554508481,4.967,1768.7,1768.6,5.65409292]
[1745554514390,4.55911591,1769.0,1768.9,5.65323082]
[1745554514577,8.73311591,1769.0,1768.9,5.65323082]
[1745554515282,3.76811591,1769.0,1768.9,5.65323082]
[1745554516375,3.76811591,1769.0,1768.3,1.978798]
[1745554516582,5.4165275,1769.0,1768.7,5.65377235]
[1745554516983,0.76766808,1768.9,1768.5,5.65428349]
[1745554517183,3.76766808,1768.9,1768.5,11.30856698]
[1745554517390,4.40306128,1768.9,1768.6,5.65418491]
[1745554517966,4.54321591,1769.0,1768.7,5.65375598]
[1745554518162,4.54321591,1769.0,1768.6,5.65398278]
[1745554518500,1.54276808,1768.9,1768.6,5.65417444]
[1745554518996,1.54276808,1768.9,1768.6,5.65414747]
[1745554519994,1.54276808,1768.9,1768.5,5.65448083]
[1745554520170,2.07385648,1768.9,1768.5,5.65448083]
[1745554520366,2.07385648,1768.9,1768.6,5.65418107]
[1745554521704,2.07385648,1768.9,1768.6,5.65401918]
[1745554522202,2.07385648,1768.9,1768.6,11.30798442]
[1745554522512,2.07385648,1768.9,1768.6,5.65396524]
[1745554531527,2.07385648,1768.9,1768.5,11.30878202]
[1745554533121,2.07385648,1768.9,1768.5,5.65433862]
[1745554533333,0.7519,1768.8,1768.4,5.65465423]
[1745554533503,0.7519,1768.6,1768.2,5.65529719]
[1745554533706,0.7519,1768.6,1768.3,5.65484146]
[1745554533908,0.7519,1768.6,1768.4,5.65477286]
[1745554535456,4.965,1768.7,1768.5,5.65450947]
[1745554535732,5.7169,1768.7,1768.4,5.65464477]
[1745554536108,5.7169,1768.7,1768.4,11.30923179]
[1745554536308,5.7169,1768.7,1768.4,5.65458702]
[1745554536691,5.7169,1768.7,1768.5,5.65450124]
[1745554537095,5.7169,1768.7,1768.4,5.65462063]
[1745554537331,5.7169,1768.7,1768.4,5.65458855]
[1745554537939,5.7169,1768.7,1768.4,11.30916708]
[1745554538101,5.7169,1768.7,1768.4,5.65457853]
[1745554539037,7.47277388,1768.7,1768.2,5.65525225]
[1745554539243,7.47277388,1768.7,1768.2,5.65522873]
[1745554539554,6.7051058,1768.7,1768.4,5.6548217]
[1745554539844,6.7051058,1768.7,1768.3,5.65498853]
[1745554541221,1.59396808,1768.5,1768.1,5.65562294]
[1745554542126,1.59396808,1768.5,1768.2,5.65532707]
[1745554542127,0.8263,1768.5,1768.2,5.65532707]
[1745554542316,0.8263,1768.5,1768.3,5.65503491]
[1745554543125,3.0,1768.6,1768.4,5.65482785]
[1745554543732,3.0,1768.6,1768.3,5.65499161]
[1745554546347,0.7988,1768.5,1768.2,5.65527222]
[1745554546817,0.7988,1768.5,1768.1,5.65561508]
[1745554547013,1.17868,1768.5,1768.1,5.65561508]
[1745554549452,1.56006808,1768.4,1768.0,5.65609154]
[1745554549649,4.964,1768.3,1768.0,5.65609154]
[1745554550333,4.964,1768.3,1768.1,5.65560869]
[1745554550648,4.964,1768.3,1768.0,5.65592607]
[1745554551327,1.56006808,1768.2,1767.7,5.65686646]
[1745554551528,0.7924,1768.1,1767.6,0.56577086]
[1745554551733,0.7924,1768.1,1767.6,5.6572433]
[1745554551930,0.7924,1767.7,1767.4,5.65800087]
[1745554552131,5.7564,1767.7,1767.4,5.65800087]
[1745554552558,5.7564,1767.7,1767.3,5.65819837]
[1745554553054,1.56006808,1767.6,1767.1,5.65883288]
[1745554553216,1.56006808,1767.6,1767.2,5.65866169]
[1745554553845,4.56006808,1767.6,1767.2,5.65866169]
[1745554554157,4.56006808,1767.6,1767.0,6.45445261]
[1745554554158,3.7924,1767.6,1767.0,7.22222362]
[1745554554311,0.7924,1767.6,1767.4,5.65802304]
[1745554560673,1.24121867,1767.8,1767.4,6.48822304]
[1745554560973,4.965,1767.5,1767.4,5.65802304]
[1745554562276,4.965,1767.7,1767.6,5.65730371]
[1745554563551,4.965,1767.7,1767.5,5.6576892]
[1745554563552,4.965,1767.7,1767.5,5.65746965]
[1745554563752,4.965,1767.7,1767.5,5.6574217]
[1745554564071,0.8108,1767.8,1767.6,5.65738854]
[1745554564291,4.966,1767.7,1767.6,5.65738854]
[1745554564866,0.8108,1767.8,1767.6,5.65738854]
[1745554565068,4.966,1767.7,1767.5,5.65751292]
[1745554565375,4.966,1767.7,1767.5,11.3149691]
[1745554565575,4.966,1767.7,1767.5,5.65745618]
[1745554565872,4.966,1767.7,1767.5,11.31491588]
[1745554566054,4.966,1767.7,1767.6,5.65738854]
[1745554568258,4.966,1767.7,1767.5,5.65759477]
[1745554568661,5.54368,1767.7,1767.4,5.65791001]
[1745554569761,5.54368,1767.7,1767.2,6.46456631]
[1745554569996,5.54368,1767.7,1767.3,5.65813147]
[1745554570170,5.54368,1767.7,1767.4,5.65789141]
[1745554570565,5.54368,1767.7,1767.4,5.65783851]
[1745554570956,5.54368,1767.7,1767.4,5.6577999]
[1745554571797,5.54368,1767.7,1767.3,5.65814608]
[1745554572599,0.7746,1767.5,1767.2,6.4645455]
[1745554572779,0.7746,1767.5,1767.3,5.65830451]
[1745554573197,5.7406,1767.7,1767.4,5.65802874]
[1745554573375,5.7406,1767.7,1767.4,5.65780181]
[1745554573576,5.7406,1767.7,1767.3,5.658092]
[1745554573786,6.61466,1767.7,1767.3,5.658092]
[1745554574701,6.61466,1767.7,1767.2,5.6585023]
[1745554576207,6.61466,1767.7,1767.3,5.65833765]
[1745554576412,6.61466,1767.7,1767.3,5.65820166]
[1745554577810,6.61466,1767.7,1767.2,5.65841685]
[1745554578111,6.61466,1767.7,1767.2,11.31686908]
[1745554578311,6.61466,1767.7,1767.2,11.31686969]
[1745554578773,6.61466,1767.7,1767.2,11.31683481]
[1745554578995,6.61466,1767.7,1767.3,5.65833849]
[1745554580500,6.61466,1767.7,1767.2,5.65841685]
[1745554581099,6.61466,1767.7,1767.3,5.65834269]
[1745554582338,6.61466,1767.7,1767.2,5.65847622]
[1745554582544,5.7406,1767.7,1767.4,5.65790769]
[1745554583753,5.7406,1767.7,1767.6,5.65738854]
[1745554583954,4.966,1767.7,1767.6,5.65738854]
[1745554584314,4.966,1767.7,1767.5,5.65752083]
[1745554584716,4.966,1767.7,1767.5,5.65751658]
[1745554584946,4.966,1767.7,1767.5,6.78905474]
[1745554585171,4.966,1767.7,1767.5,6.78903401]
[1745554585360,4.966,1767.7,1767.5,5.65749585]
[1745554585955,4.966,1767.7,1767.6,5.65738854]
[1745554587054,0.7755,1767.9,1767.6,5.65738854]
[1745554587264,0.76766808,1768.1,1767.5,5.65749585]
[1745554587265,0.29559759,1768.2,1767.8,0.751]
[1745554587542,0.7911,1768.3,1768.1,5.65578869]
[1745554587747,5.7551,1768.5,1768.2,5.65531375]
[1745554588111,6.17525724,1768.5,1768.2,5.65531375]
[1745554588439,4.964,1768.5,1768.3,5.65514901]
[1745554589507,4.964,1768.5,1768.4,5.65482922]
[1745554592734,4.964,1768.5,1768.3,5.65492074]
[1745554592936,4.964,1768.5,1768.4,5.65482922]
[1745554593659,4.87230996,1768.5,1768.4,5.65482922]
[1745554594723,4.87230996,1768.5,1768.0,0.8053]
[1745554594928,0.7534,1768.3,1767.9,5.65626884]
[1745554595146,0.76766808,1768.2,1767.8,5.65649301]
[1745554595353,4.962,1768.1,1767.7,5.65681203]
[1745554595554,0.7534,1768.0,1767.8,5.65666759]
[1745554595859,0.7534,1768.0,1767.7,5.65686729]
[1745554596025,0.7534,1768.0,1767.6,0.8053]
[1745554596224,0.7534,1768.0,1767.7,5.65683002]
[1745554596863,0.7534,1768.0,1767.8,5.65659917]
[1745554597660,0.7534,1768.0,1767.7,5.65689361]
[1745554598580,0.7534,1768.0,1767.6,0.8053]
[1745554598786,2.09260808,1768.0,1767.4,0.7797]
[1745554599088,0.8059,1767.7,1767.4,5.65787089]
[1745554599380,4.962,1767.6,1767.4,5.65782397]
[1745554599696,4.962,1767.6,1767.3,5.65819939]
[1745554599843,4.962,1767.6,1767.4,5.6580242]
[1745554600185,4.962,1767.6,1767.4,5.65775653]
[1745554601192,4.962,1767.6,1767.3,5.65816045]
[1745554602275,5.53879,1767.6,1767.2,5.6584836]
[1745554602884,0.7768,1767.3,1766.7,0.8183]
[1745554603038,0.7768,1767.3,1766.9,5.65947875]
[1745554603039,4.96,1767.2,1766.9,5.65947875]
[1745554603239,4.96,1767.2,1767.1,5.6589893]
[1745554614206,5.7916,1767.2,1767.0,5.65915941]
[1745554614611,5.7916,1767.2,1767.1,5.6589893]
[1745554615465,4.96,1767.2,1767.1,6.4105893]
[1745554616895,0.7517,1767.7,1767.5,5.65752234]
[1745554617076,4.962,1767.6,1767.5,5.65752234]
[1745554620781,4.962,1767.6,1767.4,6.47065971]
[1745554621099,4.962,1767.6,1767.3,5.65822809]
[1745554621304,5.7178,1767.6,1767.3,5.65822809]
[1745554621916,4.962,1767.6,1767.5,5.65770862]
[1745554626328,16.98,1767.9,1767.8,5.6567485]
[1745554626525,4.961,1767.8,1767.7,5.65686037]
[1745554627506,4.961,1767.8,1767.6,5.65715383]
[1745554627858,4.961,1767.8,1767.7,5.6570685]
[1745554628034,4.961,1767.8,1767.6,5.65719395]
[1745554628536,4.961,1767.8,1767.7,5.6570685]
[1745554629460,4.961,1767.8,1767.6,5.65712759]
[1745554629749,4.961,1767.8,1767.7,5.6570685]
[1745554631760,4.961,1767.8,1767.5,6.42726687]
[1745554632068,4.961,1767.8,1767.7,5.6570685]
[1745554638779,4.961,1767.8,1767.6,5.65720614]
[1745554639085,4.961,1767.8,1767.6,5.6573546]
[1745554640070,4.961,1767.8,1767.5,5.65750895]
[1745554640268,4.961,1767.8,1767.6,5.6573829]
[1745554640559,0.7765,1767.7,1767.4,5.65785139]
[1745554640871,0.7765,1767.7,1767.3,5.7020785]
[1745554641070,0.7765,1767.7,1767.3,11.36019679]
[1745554641368,0.7765,1767.7,1767.3,5.70217216]
[1745554642097,1.52011048,1767.7,1767.3,5.70217216]
[1745554642883,1.52011048,1767.7,1767.5,5.65753853]
[1745554643172,4.961,1767.8,1767.6,5.65738854]
[1745554643488,0.7949,1767.7,1767.3,0.04394886]
[1745554643795,0.7949,1767.7,1767.3,5.70211626]
[1745554644156,1.44725681,1767.7,1767.3,5.70211626]
[1745554645388,1.44725681,1767.7,1767.3,0.04394886]
[1745554645898,1.44725681,1767.7,1767.4,5.65783983]
[1745554646591,1.44725681,1767.7,1767.4,5.65782755]
[1745554647896,0.7949,1767.7,1767.4,5.65788815]
[1745554648088,0.7949,1767.7,1767.4,5.65782786]
[1745554651486,0.7949,1767.7,1767.4,5.65800372]
[1745554652394,0.7949,1767.7,1767.3,0.04394886]
[1745554652598,0.7949,1767.7,1767.4,5.65777729]
[1745554653124,0.7949,1767.7,1767.4,11.3155786]
[1745554653297,0.7949,1767.7,1767.3,5.70213589]
[1745554653617,0.7949,1767.7,1767.3,5.7020895]
[1745554653919,0.76766808,1767.4,1767.3,0.04394886]
[1745554654222,9.54806808,1767.4,1767.3,0.04394886]
[1745554654595,10.09806808,1767.4,1767.3,0.04394886]
[1745554654796,9.54806808,1767.4,1767.3,0.04394886]
[1745554663748,10.09806808,1767.4,1767.3,0.04394886]
[1745554663955,0.8293,1767.2,1766.5,6.4467809]
[1745554664130,1.59696808,1767.2,1766.6,5.66044791]
[1745554664823,0.8293,1767.1,1766.5,6.4467809]
[1745554665035,4.957,1767.0,1766.5,6.44670312]
[1745554665234,0.4957,1766.9,1766.5,6.44665254]
[1745554666251,0.4957,1766.9,1766.6,5.66058689]
[1745554666621,0.4957,1766.9,1766.5,6.44674033]
[1745554667155,4.957,1767.0,1766.8,5.6597366]
[1745554667824,4.957,1767.0,1766.7,5.66010143]
[1745554668025,4.957,1767.0,1766.8,5.65978706]
[1745554668624,4.957,1767.0,1766.9,5.65962986]
[1745554668828,4.957,1767.0,1766.8,5.65978706]
[1745554669232,4.957,1767.0,1766.9,5.65962986]
[1745554669568,4.957,1767.0,1766.8,5.65975483]
[1745554671470,4.957,1767.0,1766.9,5.65962986]
[1745554671967,4.957,1767.0,1766.9,6.43752986]
[1745554675147,4.957,1767.0,1766.9,7.64725833]
[1745554675459,4.958,1767.3,1767.2,6.48978011]
[1745554681765,4.958,1767.3,1767.2,5.65848011]
[1745554682698,4.958,1767.3,1767.1,5.65898252]
[1745554682866,4.958,1767.3,1767.1,5.65878661]
[1745554684091,4.958,1767.3,1767.2,5.65866908]
[1745554684496,4.958,1767.3,1767.1,5.65883666]
[1745554684807,4.958,1767.3,1767.2,5.65866908]
[1745554685706,4.958,1767.3,1767.1,5.65887834]
[1745554686212,4.958,1767.3,1767.0,6.41828764]
[1745554686396,4.958,1767.3,1767.1,5.65885008]
[1745554686602,4.958,1767.3,1767.2,5.65866908]
[1745554686913,4.958,1767.3,1767.1,5.65879836]
[1745554688209,4.958,1767.3,1767.2,5.65866908]
[1745554689203,4.958,1767.3,1767.1,5.65882744]
[1745554689604,4.958,1767.3,1767.1,5.65876337]
[1745554689807,4.958,1767.3,1767.2,5.65866908]
[1745554691121,4.958,1767.3,1767.1,5.65877065]
[1745554691526,4.958,1767.3,1767.1,11.31755409]
[1745554691682,4.958,1767.3,1767.2,5.65866908]
[1745554693533,4.958,1767.3,1767.1,5.65885022]
[1745554693901,4.958,1767.3,1767.1,5.65877016]
[1745554694228,4.958,1767.3,1767.1,5.65874199]
[1745554694940,5.7325,1767.3,1767.1,5.65874199]
[1745554695231,5.7325,1767.3,1767.1,11.31752318]
[1745554695411,5.7325,1767.3,1767.1,5.65874199]
[1745554696406,5.7325,1767.3,1767.2,5.65866908]
[1745554696804,4.958,1767.3,1767.2,5.65866908]
[1745554697515,4.958,1767.3,1767.1,5.6587755]
[1745554697843,4.958,1767.3,1767.1,5.6589893]
[1745554698539,4.958,1767.3,1767.1,5.6587394]
[1745554698834,4.958,1767.3,1767.2,5.65866908]
[1745554699137,4.958,1767.3,1767.1,5.65880785]
[1745554699348,4.958,1767.3,1767.2,5.65866908]
[1745554700220,4.958,1767.3,1767.2,6.46426908]
[1745554702245,17.8143,1767.9,1767.2,0.8056]
[1745554702444,4.954,1767.7,1767.5,6.43942861]
[1745554702618,4.954,1767.7,1767.5,5.65752861]
[1745554702824,4.954,1767.7,1767.6,5.65738854]
[1745554704061,4.954,1767.7,1767.6,6.48338854]
[1745554704554,4.954,1767.8,1767.7,5.65699131]
[1745554704950,4.954,1767.8,1767.6,5.65722052]
[1745554706051,4.954,1767.8,1767.5,6.48403778]
[1745554706362,4.954,1767.8,1767.5,12.14149647]
[1745554706562,4.954,1767.8,1767.5,6.48399113]
[1745554707462,4.954,1767.8,1767.6,5.65735232]
[1745554708381,4.954,1767.8,1767.4,5.65786942]
[1745554710606,4.954,1767.8,1767.3,6.48386529]
[1745554710753,0.8031,1767.7,1767.4,5.65801372]
[1745554711385,0.8031,1767.7,1767.3,6.48387173]
[1745554711780,0.8031,1767.7,1767.2,5.65845903]
[1745554711978,1.45557681,1767.7,1767.2,5.65845903]
[1745554712173,1.45557681,1767.7,1767.1,6.48448247]
[1745554712379,0.8031,1767.6,1767.1,6.48448247]
[1745554712886,0.8031,1767.5,1766.9,2.03542847]
[1745554713070,4.953,1767.4,1766.9,6.48516462]
[1745554713269,4.953,1767.4,1766.9,6.48510565]
[1745554713474,4.953,1767.4,1767.0,5.65928129]
[1745554714907,4.953,1767.4,1766.9,6.48512439]
[1745554715109,0.8041,1767.3,1766.9,6.48512439]
[1745554715310,0.8041,1767.3,1767.0,5.65917735]
[1745554716209,0.8041,1767.3,1766.9,6.48512439]
[1745554716703,0.8041,1767.3,1766.9,6.48511343]
[1745554716878,0.8041,1767.3,1766.8,5.65977514]
[1745554717737,0.8041,1767.3,1766.5,9.42853388]
[1745554717738,0.7531,1767.1,1766.6,5.66052601]
[1745554717883,4.954,1767.0,1766.5,6.48535585]
[1745554718079,6.2025,1767.0,1766.5,6.48535585]
[1745554718383,0.7749,1766.9,1766.4,5.66109209]
[1745554718704,0.7749,1766.8,1766.3,5.66133528]
[1745554719011,1.15239,1766.8,1766.3,5.66132013]
[1745554719211,1.15239,1766.8,1766.3,5.66130528]
[1745554719578,1.15239,1766.8,1766.4,5.66122688]
[1745554721119,1.15239,1766.8,1766.3,5.661352]
[1745554721410,1.15239,1766.8,1766.4,5.66122273]
[1745554721590,0.7749,1766.8,1766.4,5.66098218]
[1745554723421,0.7749,1766.8,1766.5,5.66088786]
[1745554723613,0.7749,1766.8,1766.4,5.66097069]
[1745554727425,0.7749,1766.8,1766.3,5.66154617]
[1745554727727,0.7749,1766.8,1766.4,5.66107559]
[1745554728728,0.7749,1766.8,1766.5,5.66090661]
[1745554728901,0.75284653,1766.8,1766.5,5.66090661]
[1745554729098,4.954,1767.0,1766.5,2.66807338]
[1745554729303,4.954,1767.0,1766.8,5.65995019]
[1745554729746,4.954,1767.0,1766.9,5.65962986]
[1745554740586,4.954,1767.0,1766.7,5.66011584]
[1745554740806,0.799,1766.9,1766.8,5.6599319]
[1745554741285,0.799,1766.9,1766.7,5.66007464]
[1745554741584,0.799,1766.9,1766.8,5.65995019]
[1745554741783,4.954,1767.0,1766.9,5.65962986]
[1745554741986,0.7831,1767.2,1767.0,5.65925087]
[1745554742203,4.952,1767.1,1766.9,5.65948343]
[1745554742400,4.952,1767.1,1767.0,5.65930956]
[1745554743584,4.952,1767.1,1766.8,0.8293]
[1745554743790,4.952,1767.1,1767.0,5.65930956]
[1745554743985,4.952,1767.1,1767.0,6.79118105]
[1745554745005,4.952,1767.1,1767.0,1.13187149]
[1745554745201,4.952,1767.1,1767.0,5.65930956]
[1745554746878,4.952,1767.1,1766.9,5.65937797]
[1745554747077,4.952,1767.1,1766.9,11.31882158]
[1745554747287,4.952,1767.1,1766.9,5.65937797]
[1745554748686,5.7551,1767.1,1766.9,5.65937797]
[1745554748889,5.7551,1767.1,1766.7,11.32028456]
[1745554749205,5.7551,1767.1,1766.8,5.65971696]
[1745554749502,5.7551,1767.1,1766.9,5.65940911]
[1745554749677,5.7551,1767.1,1766.9,11.31880651]
[1745554749875,5.7551,1767.1,1766.9,5.6593974]
[1745554750108,4.952,1767.1,1767.0,5.65930956]
[1745554750983,4.952,1767.1,1766.9,5.65944451]
[1745554751207,4.952,1767.1,1766.9,12.45078219]
[1745554751397,4.952,1767.1,1766.9,13.22488219]
[1745554752011,4.952,1767.1,1766.9,7.56543768]
[1745554752410,4.95874967,1767.3,1767.0,5.65914363]
[1745554753411,4.95874967,1767.3,1767.1,5.6588797]
[1745554753616,4.95874967,1767.3,1767.1,5.65884463]
[1745554753820,4.95874967,1767.3,1767.0,5.65911351]
[1745554754530,4.95874967,1767.3,1767.1,5.65898265]
[1745554756694,4.95874967,1767.3,1767.2,5.65866908]
[1745554756899,4.95874967,1767.3,1767.1,5.65878829]
[1745554757094,4.95874967,1767.3,1767.1,5.65874484]
[1745554757600,4.95874967,1767.3,1767.2,5.65866908]
[1745554757834,4.95874967,1767.3,1767.1,6.79063138]
[1745554758331,4.95874967,1767.3,1767.2,6.44406908]
[1745554758332,0.00674967,1767.3,1767.2,6.44406908]
[1745554758527,0.00674967,1767.3,1767.2,6.96499485]
[1745554758726,1e-08,1767.3,1767.2,9.96499485]
[1745554758996,1e-08,1767.3,1767.2,11.71732428]
[1745554779422,1e-08,1767.3,1767.2,11.71675935]
[1745554789192,1e-08,1767.3,1767.2,7.93135935]
[1745554789350,0.7935,1767.5,1767.4,5.65802874]
[1745554789844,0.7935,1767.5,1767.4,6.17838958]
[1745554794278,0.7935,1767.5,1767.2,5.65842638]
[1745554794481,0.8308,1767.4,1767.2,5.65842638]
[1745554794697,0.8308,1767.4,1767.1,5.65887064]
[1745554794864,0.8308,1767.4,1767.1,5.65874339]
[1745554795064,0.8308,1767.4,1767.1,5.65874221]
[1745554795248,0.8308,1767.4,1767.2,5.65865618]
[1745554796549,0.8308,1767.4,1767.2,5.6584369]
[1745554796797,0.8308,1767.4,1767.3,5.65834889]
[1745554797091,0.8308,1767.4,1767.2,5.65844765]
[1745554800358,0.8308,1767.4,1767.1,5.65878899]
[1745554801398,0.8308,1767.4,1767.0,5.65918072]
[1745554801760,0.8308,1767.4,1767.0,11.31825322]
[1745554802161,0.8308,1767.4,1766.8,5.65981198]
[1745554802403,0.8308,1767.4,1766.9,5.65955001]
[1745554802909,0.8308,1767.4,1766.6,5.66056831]
[1745554803111,0.7919,1767.3,1766.9,11.31873263]
[1745554803312,5.7048,1767.2,1766.9,5.65936208]
[1745554803462,0.7608,1767.3,1767.0,5.65918638]
[1745554803667,0.7608,1767.3,1767.0,5.65909141]
[1745554803992,0.7608,1767.3,1767.0,11.31816925]
[1745554804368,0.7608,1767.3,1767.0,5.65906211]
[1745554804678,0.7608,1767.3,1766.9,0.76766808]
[1745554804883,0.7608,1767.3,1767.2,5.65866908]
[1745554806088,0.7718,1767.6,1767.5,5.65755073]
[1745554807078,0.7718,1767.6,1767.4,5.65782152]
[1745554807479,0.7718,1767.6,1767.5,5.65770862]
[1745554808274,4.944,1767.7,1767.6,5.65738854]
[1745554808799,4.944,1767.7,1767.6,6.86566506]
[1745554809197,4.944,1767.7,1767.6,7.66526506]
[1745554809382,3.50630534,1767.8,1767.7,5.6570685]
[1745554812009,3.50630534,1767.8,1767.7,7.21773658]
[1745554812231,0.8112,1768.2,1767.7,1.56066808]
[1745554812452,4.944,1768.3,1768.2,5.65546883]
[1745554813642,4.944,1768.3,1768.1,5.65578869]
[1745554815836,4.944,1768.3,1768.2,5.65546883]
[1745554816458,4.944,1768.3,1768.1,5.65554587]
[1745554819063,5.51952,1768.3,1767.7,0.793]
[1745554819251,0.8152,1768.2,1767.5,0.7811]
[1745554819561,0.8152,1768.2,1767.7,5.65706544]
[1745554820261,0.8152,1768.2,1767.7,11.31391884]
[1745554820431,1.56812015,1768.2,1767.8,5.65658384]
[1745554820630,0.75292015,1768.2,1767.8,5.65658384]
[1745554820854,0.8302,1768.1,1767.8,5.65658384]
[1745554821464,0.8302,1768.1,1767.7,5.65682908]
[1745554822272,0.8302,1768.1,1767.7,11.31366648]
[1745554822564,0.8302,1768.1,1767.8,5.65674571]
[1745554823147,0.8302,1768.1,1767.8,5.65653496]
[1745554823566,0.8302,1768.1,1767.8,11.31305165]
[1745554823775,0.8302,1768.1,1767.9,5.65634889]
[1745554824050,0.8302,1768.1,1768.0,5.65610859]
[1745554824474,0.8302,1768.1,1767.9,5.65625785]
[1745554824780,0.8302,1768.1,1767.9,5.65618888]
[1745554826093,4.939,1768.2,1768.0,5.65602643]
[1745554826266,4.939,1768.2,1768.1,5.65578869]
[1745554827345,5.7721,1768.5,1768.2,5.6553149]
[1745554827864,5.7721,1768.5,1768.1,5.65578869]
[1745554828694,0.8331,1768.4,1768.0,5.65590703]
[1745554829263,0.8331,1768.4,1768.1,5.65572078]
[1745554829788,0.8331,1768.4,1768.0,5.65590703]
[1745554829978,0.8331,1768.4,1767.9,11.31246314]
[1745554830152,0.65397681,1768.4,1768.0,5.65606449]
[1745554830353,0.8331,1768.3,1768.0,5.65606449]
[1745554831581,0.8331,1768.3,1768.1,0.26329229]
[1745554833875,0.8331,1768.3,1768.0,5.65591504]
[1745554834180,0.76766808,1768.3,1768.1,0.24569363]
[1745554834388,0.7538,1768.2,1768.1,0.24569363]
[1745554834587,0.7538,1768.2,1767.8,5.65674841]
[1745554834811,5.6928,1768.1,1767.8,5.65674841]
[1745554835080,6.26208,1768.1,1767.8,5.65674841]
[1745554836085,6.26208,1768.1,1767.5,0.8167]
[1745554836289,0.7538,1768.0,1767.7,5.65685956]
[1745554836987,0.7538,1768.0,1767.8,5.65651468]
[1745554837205,0.7538,1768.0,1767.9,5.65642853]
[1745554837689,5.7644,1768.1,1768.0,5.65610859]
[1745554839386,5.7644,1768.1,1767.8,5.65654581]
[1745554839786,5.7644,1768.1,1768.0,5.65610859]
[1745554839990,5.7644,1768.1,1767.8,5.65645752]
[1745554840304,5.7644,1768.1,1767.9,5.65630001]
[1745554840707,5.7644,1768.1,1767.8,5.65645752]
[1745554840907,5.7644,1768.1,1767.9,5.65631605]
[1745554841470,5.7644,1768.1,1767.8,5.65656257]
[1745554841786,5.7644,1768.1,1767.9,5.65635606]
[1745554842092,5.7644,1768.1,1767.7,5.6570685]
[1745554842336,5.7644,1768.1,1768.0,0.24709781]
[1745554842512,5.7644,1768.1,1767.9,5.65623328]
[1745554842797,5.7644,1768.1,1768.0,0.24709781]
[1745554845166,5.7644,1768.1,1767.8,5.656514]
[1745554845366,5.7644,1768.1,1767.9,0.24765406]
[1745554847794,5.7644,1768.1,1767.9,5.90407711]
[1745554848178,5.7644,1768.1,1767.9,0.24765406]
[1745554850385,6.34084,1768.1,1767.9,0.24765406]
[1745554850897,6.34084,1768.1,1767.8,5.65672911]
[1745554851099,5.7644,1768.1,1768.0,0.24779065]
[1745554851267,5.7644,1768.1,1767.9,0.2483469]
[1745554851462,5.7644,1768.1,1768.0,0.24779065]
[1745554851880,5.7644,1768.1,1767.8,5.65672911]
[1745554852196,5.7644,1768.1,1767.9,0.2483469]
[1745554852371,6.38405169,1768.1,1767.9,0.2483469]
[1745554853073,5.55865169,1768.1,1767.9,0.2483469]
[1745554853401,0.7881,1768.0,1767.9,0.2483469]
[1745554853995,0.7881,1768.0,1767.7,5.65683281]
[1745554854169,0.7881,1768.0,1767.9,0.2483469]
[1745554854368,0.7881,1768.0,1767.7,5.65683281]
[1745554854598,0.7881,1768.0,1767.8,5.90536354]
[1745554859804,0.7881,1768.0,1767.8,0.24890321]
[1745554862316,0.7881,1768.0,1767.8,0.2472053]
[1745554863895,0.7881,1768.0,1767.8,5.90390612]
[1745554864093,4.939,1768.1,1767.8,5.90390612]
[1745554865517,5.55814169,1768.1,1767.8,0.2472053]
[1745554865702,4.52706808,1768.0,1767.8,0.2472053]
[1745554866091,4.52706808,1768.0,1767.5,6.46806959]
[1745554866490,4.52706808,1768.0,1767.6,0.21261416]
[1745554867624,3.7594,1768.0,1767.6,0.21261416]
[1745554867802,0.37594,1767.9,1767.6,0.21261416]
[1745554870824,0.37594,1767.9,1767.6,5.86995428]
[1745554871033,4.939,1768.1,1767.7,5.65684302]
[1745554871193,4.939,1768.1,1767.8,5.65673448]
[1745554871528,4.937,1768.2,1768.0,5.65608643]
[1745554872020,4.937,1768.2,1768.1,5.86562129]
[1745554872219,4.937,1768.2,1768.1,7.01779206]
[1745554872393,4.937,1768.5,1768.1,7.83979206]
[1745554872593,4.937,1768.5,1768.2,5.65520612]
[1745554872810,4.937,1768.5,1768.3,0.20834053]
[1745554874126,5.51329,1768.5,1768.3,0.20834053]
[1745554874299,0.8259,1768.4,1768.3,0.20834053]
[1745554874505,0.8259,1768.4,1768.0,5.65607943]
[1745554874907,0.8259,1768.4,1768.1,5.86523707]
[1745554876927,0.8259,1768.4,1768.1,5.86498772]
[1745554878312,0.8259,1768.4,1768.2,5.65544594]
[1745554878513,0.8259,1768.4,1768.2,0.20751551]
[1745554878739,0.8259,1768.4,1768.1,5.655535]
[1745554878911,0.8259,1768.4,1768.1,6.7866888]
[1745554879100,0.8259,1768.4,1768.2,0.20751551]
[1745554879302,4.937,1768.5,1768.3,5.65503595]
[1745554879537,4.937,1768.5,1768.4,5.65482922]
[1745554880036,4.937,1768.5,1768.4,5.86026592]
[1745554880235,4.937,1768.5,1768.4,7.01179611]
[1745554880718,4.937,1768.5,1768.4,1.35696689]
[1745554881236,4.937,1768.5,1768.4,7.01179611]
[1745554883010,4.937,1768.5,1768.4,0.2054367]
[1745554884125,4.937,1768.5,1768.2,6.45052449]
[1745554884438,4.937,1768.5,1768.3,0.20533686]
[1745554884834,4.937,1768.5,1768.1,6.78670308]
[1745554885041,4.937,1768.5,1768.4,0.20327662]
[1745554885236,4.937,1768.5,1768.2,5.65544888]
[1745554885439,4.937,1768.5,1768.4,0.20327662]
[1745554885610,4.937,1768.5,1768.1,5.65559438]